[Event "FIDE WCCC Girls-10 2024"]
[Site "Montesilvano"]
[Date "2024.11.18"]
[Round "2.8"]
[White "Anistoroaei, Maria"]
[Black "Milojevic, Dunja"]
[Result "1-0"]
[ECO "E11"]
[WhiteElo "1715"]
[BlackElo "1610"]
[PlyCount "89"]
[EventDate "2024.11.18"]
[EventType "swiss"]
[EventCountry "ITA"]
[TimeControl "5400+30"]

1. d4 {[%emt 0:00:01]} Nf6 {[%emt 0:00:07]} 2. c4 {[%emt 0:00:05]} e6 {[%emt 0:00:21]} 3. Nf3 {[%emt 0:00:05]} Bb4+ {[%emt 0:00:09]} 4. Nbd2 {[%emt 0:00:06]} O-O {[%emt 0:01:47]} 5. e3 {[%emt 0:00:07]} b6 {[%emt 0:01:23]} 6. a3 {[%emt 0:00:10]} Bxd2+ {[%emt 0:02:23]} 7. Qxd2 {[%emt 0:00:24]} Ne4 {[%emt 0:00:41]} 8. Qc2 {[%emt 0:00:21]} Bb7 {[%emt 0:00:31]} 9. Be2 {[%emt 0:00:14]} d5 {[%emt 0:02:45]} 10. O-O {[%emt 0:01:29]} Nd7 {[%emt 0:00:36]} 11. b4 {[%emt 0:01:17]} c5 {[%emt 0:04:02]} 12. Bb2 {[%emt 0:05:09]} Rc8 {[%emt 0:01:41]} 13. dxc5 {[%emt 0:04:30]} bxc5 {[%emt 0:00:15]} 14. b5 {[%emt 0:11:36]} Ndf6 {[%emt 0:06:42]} 15. Rad1 {[%emt 0:04:45]} Qe7 {[%emt 0:02:14]} 16. Ne5 {[%emt 0:05:49]} Rfd8 {[%emt 0:05:49]} 17. f3 {[%emt 0:05:03]} Nd6 {[%emt 0:01:45]} 18. Qa4 {[%emt 0:02:23]} Nf5 {[%emt 0:06:50]} 19. Bc1 {[%emt 0:04:01]} Qc7 {[%emt 0:03:44]} 20. Ng4 {[%emt 0:04:37]} Nxg4 {[%emt 0:04:49]} 21. fxg4 {[%emt 0:00:16]} Nd6 {[%emt 0:00:48]} 22. Bb2 {[%emt 0:13:39]} Ne4 {[%emt 0:06:29]} 23. Bd3 {[%emt 0:05:24]} dxc4 {[%emt 0:02:43]} 24. Qxc4 {[%emt 0:01:44]} Bd5 {[%emt 0:03:18]} 25. Qc2 {[%emt 0:02:56]} Qb7 {[%emt 0:41:08]} 26. Rf4 {[%emt 0:04:57]} Ng5 {[%emt 0:00:00]} 27. h4 {[%emt 0:05:01]} c4 {[%emt 0:00:00]} 28. hxg5 {[%emt 0:01:10]} cxd3 {[%emt 0:00:00]} 29. Qxd3 {[%emt 0:00:19]} Qe7 {[%emt 0:00:00]} 30. Rd4 {[%emt 0:08:46]} Qc5 {[%emt 0:00:00]} 31. Rc1 {[%emt 0:02:43]} Qb6 {[%emt 0:00:00]} 32. Rc3 {[%emt 0:01:53]} Re8 {[%emt 0:00:00]} 33. Qc2 {[%emt 0:01:14]} Bb7 {[%emt 0:00:00]} 34. Qd3 {[%emt 0:03:54]} Bd5 {[%emt 0:00:00]} 35. Kh1 {[%emt 0:00:57]} Red8 {[%emt 0:00:00]} 36. Qc2 {[%emt 0:00:49]} Bb7 {[%emt 0:00:00]} 37. Rxc8 {[%emt 0:00:22]} Rxc8 {[%emt 0:00:00]} 38. Qd2 {[%emt 0:00:36]} Ba8 {[%emt 0:00:28]} 39. Rd6 {[%emt 0:00:30]} Qc7 {[%emt 0:01:32]} 40. Qd4 {[%emt 0:00:20]} f6 {[%emt 0:02:10]} 41. gxf6 {[%emt 0:00:23]} Rf8 {[%emt 0:01:30]} 42. Rd7 {[%emt 0:00:36]} Qg3 {[%emt 0:00:37]} 43. f7+ {[%emt 0:00:11]} Rxf7 {[%emt 0:00:45]} 44. Rd8+ {[%emt 0:00:07]} Rf8 {[%emt 0:00:14]} 45. Qxg7# {[%emt 0:00:05]} 1-0

[Event "FIDE WCCC Girls-10 2024"]
[Site "Montesilvano"]
[Date "2024.11.18"]
[Round "2.9"]
[White "Bhavanya Panchumarthi"]
[Black "Zhumambayeva Aliya"]
[Result "1-0"]
[ECO "D02"]
[WhiteElo "1703"]
[BlackElo "1607"]
[PlyCount "112"]
[EventDate "2024.11.18"]
[EventType "swiss"]
[EventCountry "ITA"]
[TimeControl "5400+30"]

1. d4 {[%emt 0:00:09]} Nf6 {[%emt 0:00:05]} 2. Bf4 {[%emt 0:00:12]} e6 {[%emt 0:00:09]} 3. e3 {[%emt 0:00:18]} d5 {[%emt 0:00:04]} 4. Nf3 {[%emt 0:00:31]} Bd6 {[%emt 0:00:12]} 5. Ne5 {[%emt 0:00:51]} O-O {[%emt 0:00:17]} 6. Bd3 {[%emt 0:01:12]} c5 {[%emt 0:00:09]} 7. c3 {[%emt 0:00:10]} Qc7 {[%emt 0:00:07]} 8. Nd2 {[%emt 0:00:35]} b6 {[%emt 0:00:28]} 9. O-O {[%emt 0:05:09]} Nc6 {[%emt 0:00:18]} 10. Ndf3 {[%emt 0:01:07]} h6 {[%emt 0:01:26]} 11. h3 {[%emt 0:06:49]} Nd7 {[%emt 0:00:18]} 12. Nxc6 {[%emt 0:02:04]} Qxc6 {[%emt 0:00:11]} 13. Bxd6 {[%emt 0:00:23]} Qxd6 {[%emt 0:00:07]} 14. a4 {[%emt 0:00:35]} a5 {[%emt 0:01:05]} 15. Qe2 {[%emt 0:01:03]} Bb7 {[%emt 0:00:16]} 16. Rfd1 {[%emt 0:01:56]} Rfe8 {[%emt 0:01:39]} 17. e4 {[%emt 0:07:00]} e5 {[%emt 0:01:40]} 18. dxe5 {[%emt 0:06:17]} Nxe5 {[%emt 0:00:42]} 19. Bb5 {[%emt 0:01:12]} Nxf3+ {[%emt 0:10:14]} 20. Qxf3 {[%emt 0:03:34]} Re5 {[%emt 0:02:50]} 21. Rd2 {[%emt 0:19:40]} d4 {[%emt 0:01:51]} 22. Re1 {[%emt 0:01:32]} f5 {[%emt 0:01:34]} 23. cxd4 {[%emt 0:01:22]} Rxe4 {[%emt 0:08:53]} 24. Rxe4 {[%emt 0:02:32]} Bxe4 {[%emt 0:00:12]} 25. Qb3+ {[%emt 0:01:29]} Kh8 {[%emt 0:00:10]} 26. Qc3 {[%emt 0:01:35]} Rd8 {[%emt 0:00:22]} 27. f3 {[%emt 0:01:53]} cxd4 {[%emt 0:03:03]} 28. Qc1 {[%emt 0:02:57]} Bb7 {[%emt 0:00:10]} 29. Rd3 {[%emt 0:00:28]} f4 {[%emt 0:02:28]} 30. Qd2 {[%emt 0:00:47]} Bc8 {[%emt 0:00:14]} 31. Qe1 {[%emt 0:01:27]} Bf5 {[%emt 0:00:13]} 32. Rd2 {[%emt 0:00:40]} d3 {[%emt 0:00:32]} 33. Kh2 {[%emt 0:00:17]} Qd4 {[%emt 0:01:26]} 34. Qd1 {[%emt 0:01:17]} Rc8 {[%emt 0:01:45]} 35. Ba6 {[%emt 0:01:55]} Rc7 {[%emt 0:01:54]} 36. Bb5 {[%emt 0:00:48]} Qe3 {[%emt 0:02:55]} 37. Rxd3 {[%emt 0:03:59]} Bxd3 {[%emt 0:00:33]} 38. Qxd3 {[%emt 0:00:12]} Qxd3 {[%emt 0:00:04]} 39. Bxd3 {[%emt 0:00:12]} Rc1 {[%emt 0:00:15]} 40. h4 {[%emt 0:02:11]} Rd1 {[%emt 0:00:37]} 41. Be4 {[%emt 0:00:29]} g5 {[%emt 0:00:36]} 42. hxg5 {[%emt 0:00:37]} hxg5 {[%emt 0:00:05]} 43. Kh3 {[%emt 0:00:57]} Kg7 {[%emt 0:00:05]} 44. g3 {[%emt 0:00:41]} Kf6 {[%emt 0:01:02]} 45. b3 {[%emt 0:00:59]} Rg1 {[%emt 0:00:56]} 46. gxf4 {[%emt 0:00:29]} gxf4 {[%emt 0:00:05]} 47. Kh4 {[%emt 0:01:12]} Ke5 {[%emt 0:00:09]} 48. Kh3 {[%emt 0:01:01]} Re1 {[%emt 0:00:09]} 49. Bc6 {[%emt 0:01:50]} Re3 {[%emt 0:00:39]} 50. Kg4 {[%emt 0:00:30]} Rxb3 {[%emt 0:00:06]} 51. Kg5 {[%emt 0:00:43]} Rb4 {[%emt 0:00:08]} 52. Be8 {[%emt 0:00:47]} b5 {[%emt 0:02:26]} 53. Bxb5 {[%emt 0:04:06]} Rxb5 {[%emt 0:00:04]} 54. axb5 {[%emt 0:00:13]} a4 {[%emt 0:00:02]} 55. b6 {[%emt 0:00:14]} Kd6 {[%emt 0:00:02]} 56. Kxf4 {[%emt 0:01:27]} a3 {[%emt 0:00:06]} 1-0

[Event "FIDE WCCC Girls-10 2024"]
[Site "Montesilvano"]
[Date "2024.11.18"]
[Round "2.10"]
[White "Rekhviashvili, Mariam"]
[Black "Filippova, Milana"]
[Result "0-1"]
[ECO "B22"]
[WhiteElo "1610"]
[BlackElo "1687"]
[PlyCount "79"]
[EventDate "2024.11.18"]
[EventType "swiss"]
[EventCountry "ITA"]
[TimeControl "5400+30"]

1. e4 {[%emt 0:00:01]} c5 {[%emt 0:00:29]} 2. c3 {[%emt 0:00:07]} d5 {[%emt 0:00:04]} 3. exd5 {[%emt 0:00:07]} Qxd5 {[%emt 0:00:07]} 4. d4 {[%emt 0:00:04]} Nf6 {[%emt 0:00:08]} 5. Nf3 {[%emt 0:00:04]} e6 {[%emt 0:00:05]} 6. Be3 {[%emt 0:00:19]} cxd4 {[%emt 0:00:04]} 7. Nxd4 {[%emt 0:05:30]} e5 {[%emt 0:00:32]} 8. Nb5 {[%emt 0:00:46]} Qxd1+ {[%emt 0:01:08]} 9. Kxd1 {[%emt 0:00:14]} Nd5 {[%emt 0:03:30]} 10. Bxa7 {[%emt 0:07:22]} Na6 {[%emt 0:05:12]} 11. c4 {[%emt 0:02:37]} Nf4 {[%emt 0:01:26]} 12. Be3 {[%emt 0:01:49]} Bg4+ {[%emt 0:00:49]} 13. f3 {[%emt 0:01:50]} O-O-O+ {[%emt 0:00:52]} 14. Nd2 {[%emt 0:04:57]} Bf5 {[%emt 0:01:05]} 15. a3 {[%emt 0:04:44]} Bc5 {[%emt 0:02:28]} 16. Bg1 {[%emt 0:10:48]} Bxg1 {[%emt 0:01:26]} 17. Rxg1 {[%emt 0:00:07]} Nc5 {[%emt 0:00:04]} 18. Ke1 {[%emt 0:06:46]} Kb8 {[%emt 0:05:30]} 19. Ne4 {[%emt 0:14:31]} Nxe4 {[%emt 0:01:05]} 20. fxe4 {[%emt 0:00:43]} Bxe4 {[%emt 0:00:04]} 21. g3 {[%emt 0:00:48]} Nd3+ {[%emt 0:00:27]} 22. Bxd3 {[%emt 0:00:10]} Bxd3 {[%emt 0:00:06]} 23. Rc1 {[%emt 0:00:23]} e4 {[%emt 0:00:59]} 24. b3 {[%emt 0:00:33]} e3 {[%emt 0:01:11]} 25. Nc3 {[%emt 0:00:17]} Rhe8 {[%emt 0:01:25]} 26. Rg2 {[%emt 0:04:25]} f5 {[%emt 0:04:11]} 27. Ne2 {[%emt 0:00:38]} g5 {[%emt 0:00:22]} 28. Ng1 {[%emt 0:19:26]} Be4 {[%emt 0:01:59]} 29. Re2 {[%emt 0:01:48]} f4 {[%emt 0:00:07]} 30. gxf4 {[%emt 0:02:01]} gxf4 {[%emt 0:00:05]} 31. Nh3 {[%emt 0:00:20]} Bd3 {[%emt 0:02:39]} 32. Nxf4 {[%emt 0:03:16]} Bxe2 {[%emt 1:06:51]} 33. Nxe2 {[%emt 0:00:12]} Rd2 {[%emt 0:00:00]} 34. Rd1 {[%emt 0:00:47]} Ra2 {[%emt 0:00:00]} 35. h4 {[%emt 0:02:39]} Rxa3 {[%emt 0:00:00]} 36. Rb1 {[%emt 0:01:39]} Re4 {[%emt 0:00:00]} 37. Nc3 {[%emt 0:01:30]} Rxh4 {[%emt 0:00:00]} 38. Ke2 {[%emt 0:00:06]} Rh3 {[%emt 0:00:00]} 39. Kd3 {[%emt 0:03:15]} e2+ {[%emt 0:00:00]} 40. Kd4 {[%emt 0:02:51]} 0-1

[Event "FIDE WCCC Girls-10 2024"]
[Site "Montesilvano"]
[Date "2024.11.18"]
[Round "2.11"]
[White "Macakova, Bianka"]
[Black "Peng, Jingyi(Gd)"]
[Result "0-1"]
[ECO "B33"]
[WhiteElo "1610"]
[BlackElo "1720"]
[PlyCount "114"]
[EventDate "2024.11.18"]
[EventType "swiss"]
[EventCountry "ITA"]
[TimeControl "5400+30"]

1. e4 {[%emt 0:00:02]} c5 {[%emt 0:00:04]} 2. Nf3 {[%emt 0:00:22]} Nc6 {[%emt 0:00:06]} 3. d4 {[%emt 0:05:20]} cxd4 {[%emt 0:00:08]} 4. Nxd4 {[%emt 0:03:37]} e5 {[%emt 0:00:17]} 5. Nf3 {[%emt 0:07:03]} Nf6 {[%emt 0:00:16]} 6. Nc3 {[%emt 0:07:16]} Bb4 {[%emt 0:00:10]} 7. Bc4 {[%emt 0:15:13]} O-O {[%emt 0:02:43]} 8. Bg5 {[%emt 0:16:06]} d6 {[%emt 0:06:40]} 9. O-O {[%emt 0:04:05]} Bxc3 {[%emt 0:02:43]} 10. bxc3 {[%emt 0:00:11]} Be6 {[%emt 0:05:21]} 11. Bb3 {[%emt 0:04:05]} Rc8 {[%emt 0:02:29]} 12. Qd3 {[%emt 0:03:59]} Qe7 {[%emt 0:17:09]} 13. Rad1 {[%emt 0:07:49]} Rfd8 {[%emt 0:05:29]} 14. Qe3 {[%emt 0:03:32]} h6 {[%emt 0:01:41]} 15. Bh4 {[%emt 0:01:43]} b6 {[%emt 0:01:26]} 16. Rd3 {[%emt 0:02:57]} Na5 {[%emt 0:00:27]} 17. Bd5 {[%emt 0:02:36]} Bxd5 {[%emt 0:08:03]} 18. Bxf6 {[%emt 0:07:51]} Qxf6 {[%emt 0:00:03]} 19. Rxd5 {[%emt 0:00:24]} Rc6 {[%emt 0:01:36]} 20. Rfd1 {[%emt 0:01:21]} Rdc8 {[%emt 0:00:40]} 21. R1d3 {[%emt 0:05:28]} Nc4 {[%emt 0:00:10]} 22. Qe2 {[%emt 0:00:00]} Nb2 {[%emt 0:00:19]} 23. Rd2 {[%emt 0:00:00]} Na4 {[%emt 0:00:20]} 24. Qa6 {[%emt 0:00:01]} Nc5 {[%emt 0:03:29]} 25. Qe2 {[%emt 0:00:23]} Qg6 {[%emt 0:03:36]} 26. Nh4 {[%emt 0:01:00]} Qxe4 {[%emt 0:01:03]} 27. Qxe4 {[%emt 0:00:41]} Nxe4 {[%emt 0:00:03]} 28. R2d3 {[%emt 0:00:26]} Nxc3 {[%emt 0:01:21]} 29. Rxd6 {[%emt 0:00:21]} Rxd6 {[%emt 0:00:38]} 30. Rxd6 {[%emt 0:00:07]} Nxa2 {[%emt 0:03:50]} 31. g3 {[%emt 0:01:03]} Rxc2 {[%emt 0:00:59]} 32. Rd7 {[%emt 0:00:23]} a5 {[%emt 0:02:08]} 33. Rb7 {[%emt 0:00:15]} Rc6 {[%emt 0:00:25]} 34. Kg2 {[%emt 0:00:18]} Nc3 {[%emt 0:00:11]} 35. Nf5 {[%emt 0:00:13]} Re6 {[%emt 0:00:16]} 36. Kf3 {[%emt 0:00:20]} Rf6 {[%emt 0:00:34]} 37. Ke3 {[%emt 0:00:14]} Rxf5 {[%emt 0:00:08]} 38. Kd3 {[%emt 0:00:21]} Nd1 {[%emt 0:01:21]} 39. f3 {[%emt 0:00:29]} Rf6 {[%emt 0:00:39]} 40. Ke4 {[%emt 0:00:10]} Nc3+ {[%emt 0:00:53]} 41. Kxe5 {[%emt 0:00:33]} a4 {[%emt 0:00:11]} 42. f4 {[%emt 0:00:39]} a3 {[%emt 0:00:18]} 43. Ra7 {[%emt 0:00:05]} Re6+ {[%emt 0:00:54]} 44. Kf5 {[%emt 0:00:16]} g6+ {[%emt 0:00:34]} 45. Kg4 {[%emt 0:00:06]} a2 {[%emt 0:00:08]} 46. f5 {[%emt 0:00:26]} gxf5+ {[%emt 0:00:13]} 47. Kxf5 {[%emt 0:00:19]} Re1 {[%emt 0:00:09]} 48. Kf6 {[%emt 0:00:20]} Rf1+ {[%emt 0:00:10]} 49. Ke5 {[%emt 0:00:09]} a1=Q 50. Rxa1 {[%emt 0:00:23]} Rxa1 {[%emt 0:00:11]} 51. Kd4 {[%emt 0:00:30]} Rc1 {[%emt 0:00:13]} 52. Kd3 {[%emt 0:00:06]} Nd5 {[%emt 0:00:10]} 53. h4 {[%emt 0:00:06]} b5 {[%emt 0:00:04]} 54. h5 {[%emt 0:00:07]} b4 {[%emt 0:00:02]} 55. g4 {[%emt 0:00:10]} b3 {[%emt 0:00:07]} 56. g5 {[%emt 0:00:29]} b2 {[%emt 0:00:09]} 57. gxh6 {[%emt 0:00:20]} b1=Q+ {[%emt 0:00:06]} 0-1

[Event "FIDE WCCC Girls-10 2024"]
[Site "Montesilvano"]
[Date "2024.11.18"]
[Round "2.12"]
[White "Xin, Lisa J."]
[Black "Meng, Miranda"]
[Result "1-0"]
[ECO "D02"]
[WhiteElo "1602"]
[BlackElo "1675"]
[PlyCount "147"]
[EventDate "2024.11.18"]
[EventType "swiss"]
[EventCountry "ITA"]
[TimeControl "5400+30"]

1. d4 {[%emt 0:00:05]} d5 {[%emt 0:00:03]} 2. Nf3 {[%emt 0:00:08]} Nf6 {[%emt 0:00:12]} 3. e3 {[%emt 0:00:06]} g6 {[%emt 0:00:06]} 4. Nbd2 {[%emt 0:00:10]} Bg7 {[%emt 0:00:11]} 5. b4 {[%emt 0:00:19]} c6 {[%emt 0:00:29]} 6. Be2 {[%emt 0:00:19]} a5 {[%emt 0:02:14]} 7. b5 {[%emt 0:08:03]} c5 {[%emt 0:07:42]} 8. Bb2 {[%emt 0:09:22]} Nbd7 {[%emt 0:05:16]} 9. a4 {[%emt 0:03:03]} b6 {[%emt 0:05:48]} 10. O-O {[%emt 0:05:47]} Bb7 {[%emt 0:00:27]} 11. c4 {[%emt 0:13:05]} O-O {[%emt 0:07:49]} 12. Rc1 {[%emt 0:06:23]} Rc8 {[%emt 0:03:38]} 13. Qb3 {[%emt 0:05:40]} Re8 {[%emt 0:07:39]} 14. Rfd1 {[%emt 0:02:43]} cxd4 {[%emt 0:18:08]} 15. Nxd4 {[%emt 0:03:34]} Nc5 {[%emt 0:03:51]} 16. Qa2 {[%emt 0:00:50]} e6 {[%emt 0:13:34]} 17. N4f3 {[%emt 0:04:47]} Rc7 {[%emt 0:05:17]} 18. Ne5 {[%emt 0:03:13]} Qa8 {[%emt 0:01:55]} 19. Bf3 {[%emt 0:05:33]} Rd8 {[%emt 0:05:33]} 20. h3 {[%emt 0:07:27]} Qb8 {[%emt 0:03:03]} 21. Bd4 {[%emt 0:06:48]} Ne8 {[%emt 0:03:02]} 22. Nb3 {[%emt 0:03:52]} f6 {[%emt 0:01:34]} 23. Ng4 {[%emt 0:01:44]} dxc4 {[%emt 0:00:44]} 24. Rxc4 {[%emt 0:01:47]} Bxf3 {[%emt 0:00:34]} 25. gxf3 {[%emt 0:00:26]} Nxb3 {[%emt 0:01:11]} 26. Qxb3 {[%emt 0:00:45]} Rxc4 {[%emt 0:00:47]} 27. Qxc4 {[%emt 0:00:10]} Qd6 {[%emt 0:00:37]} 28. Rc1 {[%emt 0:00:59]} h5 {[%emt 0:00:43]} 29. Nh2 {[%emt 0:00:21]} Rb8 {[%emt 0:01:01]} 30. Qc6 {[%emt 0:01:11]} Kf7 {[%emt 0:00:39]} 31. Qxd6 {[%emt 0:00:23]} Nxd6 {[%emt 0:00:11]} 32. Rc7+ {[%emt 0:00:45]} Kg8 {[%emt 0:00:46]} 33. Rc6 {[%emt 0:00:33]} Nf5 {[%emt 0:00:51]} 34. Rxb6 {[%emt 0:00:34]} Rd8 {[%emt 0:00:29]} 35. Rxe6 {[%emt 0:01:18]} Nxd4 {[%emt 0:00:17]} 36. exd4 {[%emt 0:00:07]} Rxd4 {[%emt 0:00:06]} 37. Re4 {[%emt 0:00:23]} Rd1+ {[%emt 0:00:20]} 38. Kg2 {[%emt 0:00:22]} Rb1 {[%emt 0:00:10]} 39. Nf1 {[%emt 0:00:14]} Bf8 {[%emt 0:00:32]} 40. Nd2 {[%emt 0:00:30]} Ra1 {[%emt 0:00:24]} 41. Nb3 {[%emt 0:00:12]} Ra3 {[%emt 0:00:32]} 42. Nxa5 {[%emt 0:00:17]} f5 {[%emt 0:00:25]} 43. Rc4 {[%emt 0:00:53]} Kf7 {[%emt 0:00:32]} 44. b6 {[%emt 0:01:55]} Bd6 {[%emt 0:00:40]} 45. b7 {[%emt 0:00:26]} Ra1 {[%emt 0:00:53]} 46. f4 {[%emt 0:02:33]} Ra2 {[%emt 0:00:43]} 47. Kf3 {[%emt 0:00:52]} Ra3+ {[%emt 0:00:05]} 48. Kg2 {[%emt 0:00:58]} Ra2 {[%emt 0:00:04]} 49. Rd4 {[%emt 0:00:47]} Bb8 {[%emt 0:01:03]} 50. Nc6 {[%emt 0:00:31]} Rb2 {[%emt 0:00:26]} 51. Rb4 {[%emt 0:00:57]} Rxb4 {[%emt 0:00:25]} 52. Nxb4 {[%emt 0:00:06]} Bxf4 {[%emt 0:00:37]} 53. Nc6 {[%emt 0:00:25]} Ke6 {[%emt 0:00:25]} 54. b8=Q {[%emt 0:00:12]} Bxb8 {[%emt 0:00:13]} 55. Nxb8 {[%emt 0:00:06]} Kd6 {[%emt 0:00:22]} 56. a5 {[%emt 0:00:15]} Kc7 {[%emt 0:00:34]} 57. Na6+ {[%emt 0:00:21]} Kb7 {[%emt 0:00:21]} 58. Nc5+ {[%emt 0:00:06]} Kc6 {[%emt 0:00:33]} 59. a6 {[%emt 0:00:06]} Kb6 {[%emt 0:00:04]} 60. Kf3 {[%emt 0:00:08]} g5 {[%emt 0:00:23]} 61. h4 {[%emt 0:00:20]} g4+ {[%emt 0:00:40]} 62. Kf4 {[%emt 0:00:21]} Ka7 {[%emt 0:00:21]} 63. Kxf5 {[%emt 0:00:08]} Kb6 {[%emt 0:00:05]} 64. Kg5 {[%emt 0:00:09]} Ka7 {[%emt 0:00:05]} 65. Kxh5 {[%emt 0:00:12]} Kb6 {[%emt 0:00:06]} 66. Kxg4 {[%emt 0:00:06]} Ka7 {[%emt 0:00:14]} 67. h5 {[%emt 0:00:07]} Kb6 {[%emt 0:00:05]} 68. h6 {[%emt 0:00:06]} Ka7 {[%emt 0:00:05]} 69. h7 {[%emt 0:00:06]} Kb6 {[%emt 0:00:07]} 70. h8=Q {[%emt 0:00:10]} Kxc5 {[%emt 0:00:09]} 71. a7 {[%emt 0:00:15]} Kb5 {[%emt 0:00:03]} 72. a8=Q {[%emt 0:00:16]} Kc5 {[%emt 0:00:05]} 73. Qa5+ {[%emt 0:00:10]} Kc4 {[%emt 0:00:09]} 74. Qhc3# {[%emt 0:09:09] Kd5} 1-0

[Event "FIDE WCCC Girls-10 2024"]
[Site "Montesilvano"]
[Date "2024.11.18"]
[Round "2.13"]
[White "Stoica, Melina-Theodora"]
[Black "Tykalova, Barbora"]
[Result "1/2-1/2"]
[ECO "E91"]
[WhiteElo "1675"]
[BlackElo "1596"]
[PlyCount "104"]
[EventDate "2024.11.18"]
[EventType "swiss"]
[EventCountry "ITA"]
[TimeControl "5400+30"]

1. d4 {[%emt 0:00:02]} Nf6 {[%emt 0:00:04]} 2. Nf3 {[%emt 0:00:09]} g6 {[%emt 0:00:27]} 3. c4 {[%emt 0:00:18]} Bg7 {[%emt 0:00:57]} 4. Nc3 {[%emt 0:00:59]} O-O {[%emt 0:00:40]} 5. e4 {[%emt 0:00:41]} d6 {[%emt 0:03:46]} 6. Be2 {[%emt 0:08:59]} Nbd7 {[%emt 0:01:05]} 7. O-O {[%emt 0:01:42]} Qe8 {[%emt 0:01:24]} 8. Bf4 {[%emt 0:17:48]} e5 {[%emt 0:01:09]} 9. dxe5 {[%emt 0:01:57]} dxe5 {[%emt 0:03:31]} 10. Bg3 {[%emt 0:07:54]} b6 {[%emt 0:02:10]} 11. Nb5 {[%emt 0:02:33]} Qe7 {[%emt 0:08:14]} 12. Nxc7 {[%emt 0:08:57]} Rb8 {[%emt 0:00:13]} 13. Nd5 {[%emt 0:00:05]} Qe8 {[%emt 0:06:13]} 14. Nxf6+ {[%emt 0:06:16]} Bxf6 {[%emt 0:02:16]} 15. Qc2 {[%emt 0:08:11]} Bb7 {[%emt 0:04:52]} 16. Rad1 {[%emt 0:22:59]} Nc5 {[%emt 0:03:44]} 17. Bd3 {[%emt 0:01:04]} Nxd3 {[%emt 0:01:48]} 18. Qxd3 {[%emt 0:00:19]} Qe6 {[%emt 0:03:27]} 19. h3 {[%emt 0:05:23]} Rbd8 {[%emt 0:02:01]} 20. Qc2 {[%emt 0:00:13]} Rxd1 {[%emt 0:02:58]} 21. Rxd1 {[%emt 0:00:06]} Bg7 {[%emt 0:02:12]} 22. b3 {[%emt 0:01:29]} h6 {[%emt 0:02:28]} 23. Qe2 {[%emt 0:00:43]} f5 {[%emt 0:01:09]} 24. exf5 {[%emt 0:00:08]} Qxf5 {[%emt 0:03:47]} 25. Nh4 {[%emt 0:00:32]} Qf6 {[%emt 0:05:22]} 26. Qd3 {[%emt 0:01:47]} e4 {[%emt 0:00:25]} 27. Qd7 {[%emt 0:01:39]} Bc6 {[%emt 0:04:25]} 28. Qd6 {[%emt 0:00:09]} g5 {[%emt 0:05:08]} 29. Qxf6 {[%emt 0:00:06]} Rxf6 {[%emt 0:00:10]} 30. Be5 {[%emt 0:00:12]} Re6 {[%emt 0:00:25]} 31. Bxg7 {[%emt 0:00:06]} Kxg7 {[%emt 0:00:35]} 32. Nf5+ {[%emt 0:00:10]} Kg6 {[%emt 0:00:40]} 33. Ne3 {[%emt 0:00:20]} b5 {[%emt 0:05:20]} 34. cxb5 {[%emt 0:00:58]} Bxb5 {[%emt 0:01:20]} 35. Rd5 {[%emt 0:00:41]} Bd3 {[%emt 0:04:22]} 36. Rd7 {[%emt 0:00:52]} Ra6 {[%emt 0:02:50]} 37. a4 {[%emt 0:00:36]} h5 {[%emt 0:04:54]} 38. Rb7 {[%emt 0:01:32]} Ra5 {[%emt 0:01:09]} 39. g4 {[%emt 0:00:42]} h4 {[%emt 0:00:27]} 40. Kg2 {[%emt 0:00:09]} Be2 {[%emt 0:01:07]} 41. Kg1 {[%emt 0:00:18]} Bf3 {[%emt 0:00:24]} 42. Kf1 {[%emt 0:00:31]} Rc5 {[%emt 0:00:32]} 43. Ke1 {[%emt 0:00:11]} a5 {[%emt 0:01:58]} 44. Kd2 {[%emt 0:00:17]} Kf6 {[%emt 0:01:22]} 45. Rb5 {[%emt 0:00:25]} Rxb5 {[%emt 0:01:18]} 46. axb5 {[%emt 0:00:07]} Ke6 {[%emt 0:00:40]} 47. Kc3 {[%emt 0:00:09]} Be2 {[%emt 0:00:29]} 48. Kd4 {[%emt 0:00:10]} Bxb5 {[%emt 0:00:27]} 49. Kxe4 {[%emt 0:00:05]} a4 {[%emt 0:00:51]} 50. bxa4 {[%emt 0:00:08]} Bxa4 {[%emt 0:00:03]} 51. f4 {[%emt 0:00:13]} Bc6+ {[%emt 0:00:09]} 52. Kd4 {[%emt 0:00:42]} gxf4 {[%emt 0:00:10]} 1/2-1/2

[Event "FIDE WCCC Girls-10 2024"]
[Site "Montesilvano"]
[Date "2024.11.18"]
[Round "2.14"]
[White "Wang, Mi Ya Mia"]
[Black "Constantin-Ciuntu, Anne-Sophie"]
[Result "1-0"]
[ECO "B22"]
[WhiteElo "1552"]
[BlackElo "1672"]
[PlyCount "77"]
[EventDate "2024.11.18"]
[EventType "swiss"]
[EventCountry "ITA"]
[TimeControl "5400+30"]

1. e4 {[%emt 0:00:02]} c5 {[%emt 0:00:50]} 2. c3 {[%emt 0:00:06]} d5 {[%emt 0:00:10]} 3. exd5 {[%emt 0:00:06]} Qxd5 {[%emt 0:00:08]} 4. d4 {[%emt 0:00:18]} Nc6 {[%emt 0:00:33]} 5. Nf3 {[%emt 0:00:27]} Bg4 {[%emt 0:00:47]} 6. Be2 {[%emt 0:00:15]} e6 {[%emt 0:02:09]} 7. Be3 {[%emt 0:00:39]} cxd4 {[%emt 0:01:38]} 8. cxd4 {[%emt 0:00:15]} Bb4+ {[%emt 0:01:52]} 9. Nc3 {[%emt 0:01:29]} Qa5 {[%emt 0:05:40]} 10. Qb3 {[%emt 0:02:54]} Nge7 {[%emt 0:09:20]} 11. O-O {[%emt 0:00:44]} O-O {[%emt 0:08:11]} 12. a3 {[%emt 0:01:57]} Bd6 {[%emt 0:03:36]} 13. Rfd1 {[%emt 0:04:00]} Rfd8 {[%emt 0:05:40]} 14. Nd2 {[%emt 0:10:34]} Bxh2+ {[%emt 0:04:49]} 15. Kxh2 {[%emt 0:00:30]} Qh5+ {[%emt 0:00:06]} 16. Kg1 {[%emt 0:00:23]} Bxe2 {[%emt 0:00:13]} 17. Nxe2 {[%emt 0:01:55]} Qxe2 {[%emt 0:00:20]} 18. Nc4 {[%emt 0:03:57]} Qg4 {[%emt 0:06:11]} 19. Qxb7 {[%emt 0:03:44]} Rab8 {[%emt 0:07:32]} 20. Qa6 {[%emt 0:01:31]} Nxd4 {[%emt 0:03:38]} 21. Bxd4 {[%emt 0:06:17]} Rxd4 {[%emt 0:00:13]} 22. Ne3 {[%emt 0:00:52]} Qe4 {[%emt 0:09:20]} 23. Qxa7 {[%emt 0:01:02]} Nc6 {[%emt 0:00:46]} 24. Qc7 {[%emt 0:07:40]} Rdd8 {[%emt 0:06:21]} 25. Rxd8+ {[%emt 0:00:29]} Rxd8 {[%emt 0:00:09]} 26. Rc1 {[%emt 0:00:22]} Rf8 {[%emt 0:16:43]} 27. Qxc6 {[%emt 0:00:16]} Qe5 {[%emt 0:00:56]} 28. b4 {[%emt 0:00:46]} Qb2 {[%emt 0:00:36]} 29. b5 {[%emt 0:01:10]} h6 {[%emt 0:01:21]} 30. a4 {[%emt 0:00:43]} Qb4 {[%emt 0:00:14]} 31. Qc4 {[%emt 0:00:34]} Qa5 {[%emt 0:00:12]} 32. Rb1 {[%emt 0:00:41]} Rb8 {[%emt 0:00:21]} 33. Qb4 {[%emt 0:00:15]} Qc7 {[%emt 0:00:25]} 34. b6 {[%emt 0:00:08]} Qb7 {[%emt 0:00:10]} 35. a5 {[%emt 0:00:25]} Ra8 {[%emt 0:00:59]} 36. Qb5 {[%emt 0:00:39]} Kh7 {[%emt 0:00:43]} 37. Rc1 {[%emt 0:00:13]} Rb8 {[%emt 0:02:22]} 38. Ra1 {[%emt 0:00:56]} Qe4 {[%emt 0:00:56]} 39. Qb1 {[%emt 0:00:27]} 1-0